bitfinex-derivatives/quotes_BTCF0:USTF0_20250313
["timestamp","ask_amount","ask_price","bid_price","bid_amount"]
[1741874192762,0.1312699,81801.0,81800.0,0.48290548]
[1741874193167,0.009,81801.0,81800.0,0.48290548]
[1741874193372,0.009,81801.0,81800.0,0.71290548]
[1741874193572,0.10687424,81810.0,81809.0,0.1222579]
[1741874193966,0.00018335,81823.0,81822.0,0.1222385]
[1741874194367,0.1222385,81822.0,81821.0,0.2298]
[1741874194564,0.1222489,81815.0,81814.0,0.00018335]
[1741874195275,0.1222699,81801.0,81800.0,0.15103418]
[1741874195477,0.1222699,81801.0,81800.0,0.27330548]
[1741874195995,0.1222699,81801.0,81800.0,0.50310548]
[1741874196175,0.3459699,81801.0,81800.0,0.50310548]
[1741874196374,0.3459699,81801.0,81800.0,0.15103418]
[1741874196572,0.3509699,81801.0,81800.0,0.15103418]
[1741874196771,0.3509699,81801.0,81800.0,0.27330548]
[1741874196978,0.2287,81801.0,81800.0,0.27330548]
[1741874197179,0.005,81801.0,81800.0,0.29330548]
[1741874197678,0.1272699,81801.0,81800.0,0.15103418]
[1741874198078,0.1242699,81801.0,81800.0,0.15103418]
[1741874198278,0.1242699,81801.0,81800.0,0.27330548]
[1741874198279,0.005,81801.0,81800.0,0.27330548]
[1741874198482,0.1272699,81801.0,81800.0,0.27330548]
[1741874198778,0.005,81801.0,81800.0,0.27330548]
[1741874198977,0.005,81801.0,81800.0,0.15103418]
[1741874199283,0.1282699,81801.0,81800.0,0.27330548]
[1741874199684,0.1282699,81801.0,81800.0,0.71870548]
[1741874199880,0.005,81801.0,81800.0,0.71870548]
[1741874200785,0.005,81801.0,81800.0,0.72870548]
[1741874200971,0.005,81801.0,81800.0,0.90570548]
[1741874201982,0.005,81801.0,81800.0,0.15103418]
[1741874202185,0.1252699,81801.0,81800.0,0.15103418]
[1741874202384,0.126351,81801.0,81800.0,0.15103418]
[1741874202969,0.548151,81801.0,81800.0,0.15103418]
[1741874203175,0.549151,81801.0,81800.0,0.15103418]
[1741874203476,0.549151,81801.0,81800.0,0.27330548]
[1741874203670,0.549151,81801.0,81800.0,0.15103418]
[1741874204470,0.549151,81801.0,81800.0,0.60913418]
[1741874204674,0.543151,81801.0,81800.0,0.73140548]
[1741874204871,0.007,81801.0,81800.0,0.73140548]
[1741874205283,0.007,81801.0,81800.0,0.75140548]
[1741874205581,0.1272699,81801.0,81800.0,0.60913418]
[1741874205885,0.1272699,81801.0,81800.0,0.32017691]
[1741874206086,0.1262699,81801.0,81800.0,0.19790561]
[1741874206381,0.1242699,81801.0,81800.0,0.32017691]
[1741874206586,0.1242699,81801.0,81800.0,0.32117691]
[1741874206985,0.1242699,81801.0,81800.0,0.42440561]
[1741874207188,0.002,81801.0,81770.0,0.21074428]
[1741874207383,0.6894,81800.0,81783.0,0.2255]
[1741874207582,0.1834418,81786.0,81785.0,0.1222925]
[1741874207885,0.1222953,81784.0,81783.0,0.4089436]
[1741874208086,0.1222953,81784.0,81783.0,0.2255]
[1741874208282,0.1223237,81765.0,81764.0,0.00076]
[1741874208490,0.01025268,81784.0,81754.0,0.34242674]
[1741874208491,0.1223386,81755.0,81754.0,0.34242674]
[1741874208693,0.1223386,81755.0,81754.0,0.58242674]
[1741874208987,0.1223386,81755.0,81754.0,0.32007361]
[1741874209381,0.13152553,81755.0,81754.0,0.32007361]
[1741874209581,0.43238743,81755.0,81754.0,0.44241371]
[1741874209782,0.13247032,81755.0,81754.0,0.32007361]
[1741874209984,0.1223316,81761.0,81760.0,0.1223303]
[1741874210183,0.4323,81763.0,81754.0,0.32007361]
[1741874210184,0.1223386,81755.0,81754.0,0.44341361]
[1741874210491,0.1223386,81755.0,81754.0,0.12334]
[1741874210686,0.1223386,81755.0,81754.0,0.001]
[1741874211283,0.0611769,81745.0,81741.0,0.0611797]
[1741874211593,0.122345,81753.0,81735.0,0.2309]
[1741874211785,0.35335035,81752.0,81751.0,0.1223446]
[1741874212086,0.23100725,81752.0,81751.0,0.1223446]
[1741874212289,0.35335035,81752.0,81751.0,0.1223446]
[1741874212477,0.23100725,81752.0,81751.0,0.1223446]
[1741874212682,0.00010725,81752.0,81751.0,0.1223446]
[1741874212883,0.00010725,81752.0,81751.0,0.5924446]
[1741874213691,0.00018346,81755.0,81754.0,0.1223401]
[1741874213892,0.00018346,81755.0,81754.0,0.1323401]
[1741874214286,0.00018346,81755.0,81751.0,0.5332722]
[1741874214592,0.00018346,81755.0,81754.0,0.1223401]
[1741874215081,0.12252206,81755.0,81754.0,0.4497]
[1741874215278,0.12252206,81755.0,81754.0,0.001]
[1741874215484,0.00018346,81755.0,81754.0,0.001]
[1741874215682,0.12252206,81755.0,81754.0,0.001]
[1741874215992,0.1223431,81752.0,81751.0,0.00089275]
[1741874216384,0.1223703,81735.0,81734.0,0.1223693]
[1741874216691,0.40374,81754.0,81731.0,0.4328]
[1741874216882,0.0611714,81753.0,81745.0,0.0611767]
[1741874217083,0.40374,81754.0,81733.0,0.2159]
[1741874217283,0.2245,81752.0,81751.0,0.1223446]
[1741874217483,0.1223521,81747.0,81746.0,0.1223521]
[1741874217683,0.0611725,81751.0,81748.0,0.1223463]
[1741874217879,0.2245,81752.0,81751.0,0.1223446]
[1741874218086,0.1223401,81754.0,81753.0,0.1223416]
[1741874218291,0.00018346,81755.0,81754.0,0.1223401]
[1741874218993,0.00018346,81755.0,81754.0,0.5788401]
[1741874219189,0.17795674,81764.0,81763.0,0.1223267]
[1741874219788,0.17795674,81764.0,81763.0,0.15275301]
[1741874219985,0.00183562,81772.0,81771.0,0.1223147]
[1741874220184,0.00183562,81772.0,81771.0,0.1423147]
[1741874220492,0.06133416,81780.0,81772.0,0.1223132]
[1741874220696,0.00018346,81780.0,81770.0,0.4365]
[1741874220898,0.00018346,81780.0,81772.0,0.5718132]
[1741874221402,0.06133416,81780.0,81779.0,0.1223027]
[1741874221600,0.1223252,81764.0,81763.0,0.00018346]
[1741874222491,0.1223446,81751.0,81750.0,0.42639705]
[1741874222700,0.002,81764.0,81750.0,0.42639705]
[1741874222997,0.002,81764.0,81763.0,0.1223267]
[1741874223195,0.01039986,81785.0,81763.0,0.21]
[1741874223389,0.17972,81790.0,81780.0,0.1223012]
[1741874223390,0.2256,81787.0,81780.0,0.1223012]
[1741874223593,0.2256,81784.0,81781.0,0.1222985]
[1741874223792,0.3478955,81784.0,81782.0,0.2345]
[1741874223996,0.1222968,81783.0,81782.0,0.2345]
[1741874224901,0.1223077,81776.0,81775.0,0.1223081]
[1741874225098,0.2214,81782.0,81766.0,0.2333]
[1741874225298,0.21438553,81787.0,81786.0,0.1222923]
[1741874225502,0.12908843,81787.0,81786.0,0.1222923]
[1741874226701,0.12908843,81787.0,81781.0,0.2333]
[1741874226893,0.0611499,81781.0,81760.0,0.2342]
[1741874227094,0.0611569,81772.0,81763.0,0.1223266]
[1741874227290,0.1223252,81764.0,81761.0,0.4484]
[1741874227493,0.2214,81763.0,81750.0,0.1798]
[1741874227805,0.2214,81763.0,81750.0,0.1]
[1741874227994,0.2214,81763.0,81750.0,0.12]
[1741874228196,0.1223343,81758.0,81757.0,0.1223348]
[1741874228397,0.0611712,81753.0,81749.0,0.1223473]
[1741874228592,0.1223461,81750.0,81749.0,0.27]
[1741874228800,0.1223461,81750.0,81749.0,0.22412459]
[1741874229803,0.1223461,81750.0,81749.0,0.04233223]
[1741874229804,0.3017061,81750.0,81749.0,0.04233223]
[1741874230309,0.5290061,81750.0,81749.0,0.12083223]
[1741874230600,0.5290061,81750.0,81749.0,0.07699643]
[1741874231613,0.5303661,81750.0,81749.0,0.07699643]
[1741874231903,0.3516461,81750.0,81749.0,0.07699643]
[1741874232099,0.5303261,81750.0,81749.0,0.07699643]
[1741874232799,0.5303261,81750.0,81728.0,0.451]
[1741874232800,0.08468462,81753.0,81737.0,0.2245]
[1741874233102,0.08468462,81753.0,81752.0,0.1223431]
[1741874233302,0.08468462,81753.0,81737.0,0.45172]
[1741874233495,0.4465,81752.0,81737.0,0.451]
[1741874233698,0.1223641,81738.0,81737.0,0.451]
[1741874234203,0.0611811,81740.0,81733.0,0.1835507]
[1741874234204,0.1223727,81734.0,81733.0,0.1835507]
[1741874234408,0.0611771,81745.0,81739.0,0.1223626]
[1741874234616,0.4423,81752.0,81749.0,0.1223446]
[1741874234908,0.001,81753.0,81752.0,0.1223431]
[1741874235102,0.00018346,81759.0,81752.0,0.1223431]
[1741874235406,0.1835154,81753.0,81752.0,0.1223431]
[1741874235709,0.1835154,81753.0,81750.0,0.692287]
[1741874235710,0.1223446,81751.0,81750.0,0.4476]
[1741874235909,0.1223446,81751.0,81750.0,0.5699461]
[1741874236205,0.1223446,81751.0,81750.0,0.4476]
[1741874236407,0.1223581,81742.0,81741.0,0.2252]
[1741874236604,0.1223626,81739.0,81738.0,0.2165]
[1741874236803,0.122383,81727.0,81726.0,0.122382]
[1741874237807,0.0611888,81729.0,81726.0,0.122382]
[1741874237808,0.1223781,81729.0,81728.0,0.1835649]
[1741874238007,0.1223806,81727.0,81726.0,0.3459821]
[1741874238205,0.1223806,81727.0,81726.0,0.2236]
[1741874238411,0.001,81727.0,81698.0,0.0612117]
[1741874238605,0.122391,81720.0,81719.0,0.2236]
[1741874239110,0.31293202,81720.0,81719.0,0.2224228]
[1741874239708,0.30793202,81720.0,81719.0,0.2224228]
[1741874239903,0.12853202,81720.0,81719.0,0.2224228]
[1741874240102,0.17916,81725.0,81719.0,0.2224228]
[1741874240302,0.001,81720.0,81719.0,0.3448153]
[1741874240903,0.001,81720.0,81697.0,0.07165528]
[1741874240904,0.0611986,81716.0,81710.0,0.2268]
[1741874241095,0.001,81720.0,81710.0,0.2268]
[1741874241096,0.1224038,81712.0,81710.0,0.5892053]
[1741874241296,0.359599,81715.0,81714.0,0.1224]
[1741874241501,0.1243911,81720.0,81719.0,0.1223925]
[1741874241702,0.002,81720.0,81710.0,0.2268]
[1741874241900,0.002,81720.0,81701.0,0.179]
[1741874241901,0.1223981,81716.0,81701.0,0.179]
[1741874242105,0.001,81720.0,81719.0,0.1223925]
[1741874242308,0.2261,81725.0,81720.0,0.122391]
[1741874242503,0.001,81725.0,81724.0,0.1223851]
[1741874242702,0.1223816,81727.0,81724.0,0.1223851]
[1741874242897,0.2372,81734.0,81724.0,0.1223846]
[1741874243205,0.2372,81734.0,81712.0,0.0612008]
[1741874243410,0.2372,81734.0,81712.0,0.25]
[1741874243719,0.2983856,81734.0,81712.0,0.25]
[1741874244010,0.0611918,81725.0,81721.0,0.1223881]
[1741874244205,0.122388,81722.0,81721.0,0.264776]
[1741874244406,0.2251,81724.0,81708.0,0.2268]
[1741874244601,0.1224108,81707.0,81705.0,0.1224134]
[1741874244801,0.122407,81710.0,81707.0,0.1224092]
[1741874245004,0.122408,81709.0,81707.0,0.1224091]
[1741874245306,0.122408,81709.0,81702.0,0.0612085]
[1741874245307,0.0612045,81708.0,81698.0,0.2359]
[1741874245500,0.4491,81712.0,81698.0,0.2359]
[1741874245702,0.1224185,81702.0,81701.0,0.122419]
[1741874245902,0.4561,81707.0,81700.0,0.1]
[1741874246097,0.1836211,81705.0,81702.0,0.0612083]
[1741874246406,0.3545158,81704.0,81703.0,0.1224165]
[1741874246603,0.2321,81704.0,81703.0,0.1224165]
[1741874246906,0.354515,81704.0,81703.0,0.1224165]
[1741874247112,0.2321,81704.0,81703.0,0.1224165]
[1741874247304,0.02715679,81706.0,81705.0,0.1224135]
[1741874247605,0.00018358,81712.0,81711.0,0.1224045]
[1741874247803,0.00018358,81712.0,81711.0,0.3524045]
[1741874248802,0.00018358,81712.0,81711.0,0.1224045]
[1741874249311,0.00018358,81712.0,81711.0,0.3824045]
[1741874250900,0.06138578,81712.0,81709.0,0.00017735]
[1741874251214,0.122406,81710.0,81709.0,0.00017735]
[1741874251707,0.585206,81710.0,81709.0,0.00017735]
[1741874251911,0.4628,81710.0,81700.0,0.1]
[1741874252101,0.1224195,81701.0,81700.0,0.07302056]
[1741874253016,0.5888195,81701.0,81700.0,0.30302056]
[1741874253512,0.0612034,81710.0,81700.0,0.30302056]
[1741874253708,0.122418,81702.0,81701.0,0.237]
[1741874253916,0.1224195,81701.0,81700.0,0.07302056]
[1741874254410,0.1264195,81701.0,81700.0,0.07302056]
[1741874254711,0.1294195,81701.0,81700.0,0.07302056]
[1741874254911,0.14041585,81701.0,81700.0,0.31302056]
[1741874255110,0.14041585,81701.0,81700.0,0.07302056]
[1741874255415,0.1314195,81701.0,81700.0,0.07302056]
[1741874255613,0.4611795,81701.0,81700.0,0.07302056]
[1741874256117,0.4521795,81701.0,81700.0,0.07302056]
[1741874256302,0.122445,81685.0,81684.0,0.0612219]
[1741874256501,0.122445,81685.0,81672.0,0.2165]
[1741874256502,0.0612228,81684.0,81671.0,0.37]
[1741874256708,0.122463,81672.0,81671.0,0.1824631]
[1741874256915,0.13353898,81672.0,81671.0,0.1824631]
[1741874257411,0.061234,81669.0,81640.0,0.21074428]
[1741874257614,0.18096,81668.0,81659.0,0.2165]
[1741874257818,0.18096,81668.0,81667.0,0.1224705]
[1741874258116,0.01065576,81672.0,81670.0,0.1224651]
[1741874258418,0.01065576,81672.0,81671.0,0.3606645]
[1741874258607,0.00018369,81672.0,81671.0,0.3606645]
[1741874258807,0.006,81685.0,81671.0,0.2482]
[1741874259214,0.122463,81672.0,81671.0,0.2382]
[1741874259411,0.003,81685.0,81671.0,0.2994317]
[1741874259716,0.122463,81672.0,81671.0,0.2382]
[1741874260309,0.122475,81664.0,81663.0,0.00018369]
[1741874260910,0.2186,81665.0,81663.0,0.00018369]
[1741874261218,0.061225,81681.0,81663.0,0.23838369]
[1741874261405,0.1224691,81668.0,81667.0,0.1224694]
[1741874261604,0.122475,81664.0,81663.0,0.36085969]
[1741874261814,0.2258,81667.0,81664.0,0.1224729]
[1741874262018,0.1224698,81668.0,81665.0,0.4566]
[1741874262323,0.122475,81664.0,81663.0,0.00018369]
[1741874263913,0.13296992,81664.0,81663.0,0.00018369]
[1741874264914,0.35586992,81664.0,81663.0,0.00018369]
[1741874265917,0.36696664,81664.0,81663.0,0.00018369]
[1741874266319,0.35586992,81664.0,81663.0,0.00018369]
[1741874267521,0.23339492,81664.0,81663.0,0.00018369]
[1741874267718,0.0612336,81670.0,81666.0,0.1224716]
[1741874267914,0.2184,81679.0,81667.0,0.2234]
[1741874268115,0.2135238,81688.0,81668.0,0.2388]
[1741874268319,0.2373,81678.0,81668.0,0.2388]
[1741874268530,0.122469,81668.0,81667.0,0.2234]
[1741874268725,0.0612399,81661.0,81654.0,0.2388]
[1741874269023,0.2373,81667.0,81654.0,0.7022]
[1741874269228,0.1224885,81655.0,81654.0,0.4622]
[1741874269524,0.061239,81662.0,81632.0,0.00011583]
[1741874269525,0.1225215,81633.0,81632.0,0.00011583]
[1741874269715,0.6722,81654.0,81636.0,0.0612581]
[1741874270121,0.00018369,81653.0,81634.0,0.1225188]
[1741874270423,0.0612513,81646.0,81632.0,0.00011583]
[1741874270622,0.00018369,81653.0,81632.0,0.14011583]
[1741874270826,0.21668369,81653.0,81633.0,0.18168]
[1741874271043,0.21668369,81653.0,81642.0,0.0612537]
[1741874271325,0.21668369,81653.0,81652.0,0.122493]
[1741874271326,0.00018369,81653.0,81652.0,0.122493]
[1741874271530,0.18164,81691.0,81670.0,0.122466]
[1741874271725,0.2165,81683.0,81670.0,0.122466]
[1741874272030,0.1224539,81679.0,81670.0,0.122466]
[1741874272327,0.1224638,81672.0,81668.0,0.4493]
[1741874272522,0.1224675,81669.0,81668.0,0.4493]
[1741874272727,0.2225,81670.0,81668.0,0.4493]
[1741874272926,0.2225,81670.0,81669.0,0.1224675]
[1741874273128,0.00018369,81678.0,81677.0,0.1224555]
[1741874273528,0.00018369,81678.0,81676.0,0.4615]
[1741874273732,0.00018369,81678.0,81677.0,0.1224555]
[1741874273922,0.00183711,81702.0,81680.0,0.0612252]
[1741874274231,0.00140001,81716.0,81693.0,0.1224315]
[1741874274421,0.0612095,81702.0,81671.0,0.0612321]
[1741874274621,0.2225,81693.0,81677.0,0.4538]
[1741874274932,0.001,81678.0,81654.0,0.0612443]
[1741874275126,0.122469,81668.0,81667.0,0.2238]
[1741874275332,0.0612348,81668.0,81667.0,0.27]
[1741874275633,0.2810341,81669.0,81658.0,0.00018369]
[1741874275826,0.00018369,81676.0,81659.0,0.0612412]
[1741874276031,0.229,81675.0,81674.0,0.12246]
[1741874276233,0.00018369,81676.0,81665.0,0.5178362]
[1741874276428,0.1224606,81674.0,81668.0,0.1224687]
[1741874276627,0.1224606,81674.0,81668.0,0.2449368]
[1741874276823,0.00018369,81676.0,81671.0,0.1224644]
[1741874277130,0.00018369,81676.0,81672.0,0.2286]
[1741874277424,0.1224615,81673.0,81672.0,0.2286]
[1741874277632,0.00018369,81676.0,81665.0,0.2328]
[1741874277827,0.002,81668.0,81666.0,0.2286]
[1741874278031,0.1224705,81667.0,81666.0,0.2286]
[1741874278419,0.005,81668.0,81666.0,0.2286]
[1741874278626,0.003,81673.0,81671.0,0.1224644]
[1741874278828,0.006,81673.0,81672.0,0.4606]
[1741874279134,0.1284615,81673.0,81672.0,0.4606]
[1741874279428,0.003,81673.0,81672.0,0.4606]
[1741874279633,0.00018369,81676.0,81674.0,0.1224597]
[1741874279819,0.12264069,81676.0,81675.0,0.4602]
[1741874280021,0.00018369,81676.0,81675.0,0.4602]
[1741874280231,0.12264069,81676.0,81675.0,0.4602]
[1741874280623,0.00018369,81676.0,81675.0,0.4602]
[1741874281232,0.17984,81706.0,81675.0,0.4702]
[1741874281527,0.21074428,81700.0,81675.0,0.4702]
[1741874281728,0.122457,81676.0,81675.0,0.4602]
[1741874281933,0.122457,81676.0,81675.0,0.2282]
[1741874282127,0.125457,81676.0,81675.0,0.2282]
[1741874282326,0.125457,81676.0,81668.0,0.232]
[1741874282327,0.1224675,81669.0,81668.0,0.232]
[1741874282532,0.0612329,81671.0,81667.0,0.00018369]
[1741874282533,0.122469,81668.0,81667.0,0.00018369]
[1741874282832,0.703,81668.0,81648.0,0.1224976]
[1741874283036,0.703,81668.0,81646.0,0.232]
[1741874283037,0.1224949,81651.0,81649.0,0.2243]
[1741874283225,0.1224949,81651.0,81650.0,0.232]
[1741874283638,0.238,81652.0,81650.0,0.354496]
[1741874283835,0.02861409,81707.0,81650.0,0.354496]
[1741874283836,0.00018369,81659.0,81650.0,0.232]
[1741874284136,0.00018369,81659.0,81658.0,0.122484]
[1741874284337,0.1224855,81657.0,81656.0,0.4563]
[1741874285431,0.5867855,81657.0,81656.0,0.4563]
[1741874285637,0.3506855,81657.0,81656.0,0.4563]
[1741874286132,0.00018369,81659.0,81658.0,0.122484]
[1741874286833,0.00018369,81659.0,81656.0,0.4563]
[1741874287032,0.004,81657.0,81656.0,0.5787856]
[1741874287230,0.1264855,81657.0,81656.0,0.4563]
[1741874287929,0.008,81657.0,81656.0,0.578787]
[1741874288133,0.1304855,81657.0,81656.0,0.4563]
[1741874288335,0.008,81657.0,81656.0,0.578787]
[1741874288833,0.008,81657.0,81656.0,0.638787]
[1741874289033,0.008,81657.0,81656.0,0.578787]
[1741874289435,0.00018369,81659.0,81656.0,0.4563]
[1741874289630,0.00018369,81659.0,81658.0,0.122484]
[1741874290633,0.17795043,81672.0,81665.0,0.0612361]
[1741874290935,0.2221,81671.0,81666.0,0.4368]
[1741874291143,0.3445655,81671.0,81666.0,0.5592706]
[1741874291344,0.2221,81671.0,81666.0,0.4368]
[1741874291641,0.1224705,81667.0,81666.0,0.2208]
[1741874291842,0.1224795,81661.0,81660.0,0.21618369]
[1741874292033,0.1224795,81661.0,81660.0,0.45148369]
[1741874292228,0.1224795,81661.0,81660.0,0.23548369]
[1741874292444,0.1224795,81661.0,81660.0,0.00018369]
[1741874292938,0.3560795,81661.0,81660.0,0.00018369]
[1741874293434,0.3560795,81661.0,81615.0,0.36496009]
[1741874293435,0.1224945,81651.0,81638.0,0.21954956]
[1741874293741,0.1224945,81651.0,81650.0,0.0435171]
[1741874293742,0.3019745,81651.0,81650.0,0.0435171]
[1741874294042,0.43284428,81660.0,81650.0,0.0435171]
[1741874294043,0.4663,81652.0,81650.0,0.0435171]
[1741874294342,0.1224945,81651.0,81650.0,0.0435171]
[1741874294734,0.5887945,81651.0,81650.0,0.0435171]
[1741874295134,0.59926187,81651.0,81650.0,0.0435171]
[1741874295528,0.74926187,81651.0,81643.0,0.00018369]
[1741874295733,0.122505,81644.0,81643.0,9e-08]
[1741874295939,0.301665,81644.0,81643.0,9e-08]
[1741874296237,0.301985,81644.0,81643.0,9e-08]
[1741874296643,0.532285,81644.0,81643.0,9e-08]
[1741874296942,0.40978,81644.0,81643.0,0.12250659]
[1741874297243,0.01446737,81651.0,81650.0,0.122496]
[1741874297433,0.1225003,81648.0,81646.0,0.1225017]
[1741874297629,0.2303,81650.0,81645.0,0.2298]
[1741874298038,0.01246737,81651.0,81650.0,0.122496]
[1741874298235,0.01246737,81651.0,81646.0,0.2188]
[1741874298236,0.01246737,81651.0,81647.0,0.1225001]
[1741874298443,0.01446737,81651.0,81647.0,0.2302]
[1741874298745,0.1225215,81633.0,81610.0,0.21074428]
[1741874298940,0.1225215,81633.0,81621.0,0.2302]
[1741874299138,0.1225215,81633.0,81622.0,0.2188]
[1741874299337,0.1225215,81633.0,81622.0,0.35207775]
[1741874299640,0.5746215,81633.0,81622.0,0.2188]
[1741874299844,0.3494215,81633.0,81624.0,0.00018369]
[1741874300144,0.2269,81633.0,81630.0,0.0612623]
[1741874300351,0.01086873,81635.0,81631.0,0.4529]
[1741874300640,0.2263,81638.0,81632.0,0.57553823]
[1741874300845,0.3488146,81638.0,81632.0,0.57553823]
[1741874301049,0.00018369,81641.0,81624.0,0.00018369]
[1741874301235,0.1225335,81625.0,81624.0,0.00018369]
[1741874302045,0.2263,81625.0,81624.0,0.00018369]
[1741874302351,0.3488335,81625.0,81624.0,0.00018369]
[1741874302543,0.23718472,81625.0,81613.0,0.0001]
[1741874302751,0.12255,81614.0,81613.0,0.0001]
[1741874303047,0.4688,81624.0,81613.0,0.0001]
[1741874303243,0.2358,81623.0,81613.0,0.0001]
[1741874303434,0.01079729,81626.0,81615.0,0.0612742]
[1741874303638,0.1225336,81625.0,81624.0,0.001]
[1741874303841,0.5913336,81625.0,81624.0,0.001]
[1741874304037,0.2296,81625.0,81613.0,0.0001]
[1741874304236,0.2358,81624.0,81623.0,0.1225365]
[1741874304435,0.2358,81624.0,81621.0,0.0612693]
[1741874304639,0.2358,81624.0,81618.0,0.2415]
[1741874305046,0.122538,81622.0,81618.0,0.2415]
[1741874305233,0.2358,81621.0,81620.0,0.1225398]
[1741874305435,0.004,81625.0,81624.0,0.122535]
[1741874305634,0.3939638,81671.0,81624.0,0.41044]
[1741874305845,0.14241428,81642.0,81641.0,0.1837642]
[1741874306049,0.14241428,81642.0,81638.0,0.1225128]
[1741874306345,0.14241428,81642.0,81625.0,0.1802]
[1741874306543,0.2203,81641.0,81640.0,0.122511]
[1741874307045,0.14241428,81642.0,81640.0,0.122511]
[1741874307243,0.14241428,81642.0,81641.0,0.1225095]
[1741874307450,0.14241428,81642.0,81638.0,0.001]
[1741874307749,0.1225125,81639.0,81638.0,0.001]
[1741874307947,0.4623,81641.0,81638.0,0.001]
[1741874308139,0.4623,81641.0,81637.0,0.0612576]
[1741874308341,0.4623,81641.0,81639.0,0.1225114]
[1741874308342,0.2213,81641.0,81639.0,0.1225114]
[1741874308648,0.2213,81641.0,81632.0,0.00018369]
[1741874308848,0.2203,81641.0,81632.0,0.00018369]
[1741874309043,0.3022559,81640.0,81632.0,0.00018369]
[1741874309243,0.0612599,81635.0,81632.0,0.00018369]
[1741874309442,0.5816203,81634.0,81632.0,0.00018369]
[1741874309645,0.4591,81634.0,81632.0,0.00018369]
[1741874309849,0.2181,81634.0,81632.0,0.00018369]
[1741874310045,0.0612553,81641.0,81632.0,0.00018369]
[1741874310046,0.2295,81641.0,81632.0,0.00018369]
[1741874310342,0.0612563,81639.0,81632.0,0.00018369]
[1741874310547,0.2181,81638.0,81632.0,0.00018369]
[1741874310744,0.002,81634.0,81632.0,0.00018369]
[1741874310952,0.002,81634.0,81633.0,0.1837822]
[1741874311151,0.002,81634.0,81633.0,0.231]
[1741874311349,0.2181,81640.0,81633.0,0.231]
[1741874311657,0.2181,81638.0,81633.0,0.3535205]
[1741874311952,0.2181,81638.0,81633.0,0.231]
[1741874312145,0.2181,81638.0,81632.0,0.00018369]
[1741874312146,0.1225215,81633.0,81632.0,0.00018369]
[1741874312654,0.5854215,81633.0,81632.0,0.00018369]
[1741874312956,0.002,81634.0,81632.0,0.00018369]
[1741874313250,0.002,81634.0,81632.0,0.24008369]
[1741874313443,0.004,81634.0,81632.0,0.24008369]
[1741874313753,0.3559215,81633.0,81632.0,0.00018369]
[1741874313946,0.5880215,81633.0,81632.0,0.00018369]
[1741874314548,0.0612616,81632.0,81613.0,0.0001]
[1741874314854,0.2394,81632.0,81613.0,0.0001]
[1741874315053,0.12255,81614.0,81613.0,0.0001]
[1741874315352,0.0612687,81623.0,81613.0,0.0001]
[1741874315550,0.1225467,81617.0,81613.0,0.0001]
[1741874315753,0.0612716,81619.0,81613.0,0.0001]
[1741874315754,0.00018369,81626.0,81625.0,0.1225335]
[1741874316561,0.00018369,81626.0,81625.0,0.1425335]
[1741874316854,0.007,81633.0,81608.0,0.17744]
[1741874317051,0.007,81633.0,81621.0,0.2279]
[1741874317254,0.003,81633.0,81628.0,0.1225284]
[1741874317552,0.14241428,81631.0,81630.0,0.122526]
[1741874317851,0.2135238,81642.0,81630.0,0.07]
[1741874318046,0.2135238,81642.0,81641.0,0.1225095]
[1741874318252,0.2135238,81642.0,81641.0,0.1325095]
[1741874318452,0.2245,81669.0,81660.0,0.122481]
[1741874318642,0.01106739,81666.0,81660.0,0.122481]
[1741874318842,0.01106739,81666.0,81654.0,0.1224894]
[1741874319043,0.00018369,81669.0,81659.0,0.1224819]
[1741874319244,0.00018369,81669.0,81660.0,0.2193]
[1741874319556,0.01074123,81666.0,81660.0,0.2193]
[1741874319751,0.00018369,81669.0,81660.0,0.341781]
[1741874319957,0.00018369,81669.0,81660.0,0.2393]
[1741874320152,0.00018369,81669.0,81662.0,0.1224775]
[1741874320360,0.00018369,81669.0,81664.0,0.1224737]
[1741874320556,0.00018369,81669.0,81665.0,0.6778]
[1741874321067,0.00018369,81669.0,81668.0,0.122469]
[1741874321351,0.00018369,81669.0,81665.0,0.67848]
[1741874321551,0.00018369,81669.0,81667.0,0.2193]
[1741874321752,0.00018369,81669.0,81668.0,0.359469]
[1741874321955,0.00318369,81669.0,81668.0,0.359469]
[1741874322151,0.10697491,81682.0,81681.0,0.1224495]
[1741874322948,0.10697491,81682.0,81681.0,0.5955495]
[1741874323149,0.10697491,81682.0,81681.0,0.4731]
[1741874323452,0.0612162,81693.0,81681.0,0.4731]
[1741874323453,0.00018369,81690.0,81689.0,0.1224375]
[1741874324746,0.01072117,81702.0,81695.0,0.1224285]
[1741874325260,0.2409,81708.0,81702.0,0.122418]
[1741874325461,0.2408,81707.0,81705.0,0.1224129]
[1741874325850,0.2408,81707.0,81706.0,0.122412]
[1741874326052,0.00018369,81714.0,81713.0,0.1224015]
[1741874326356,0.00018369,81714.0,81713.0,0.2624015]
[1741874326552,0.2408,81733.0,81728.0,0.1223791]
[1741874326748,0.4817,81733.0,81728.0,0.1223791]
[1741874326949,0.25009529,81734.0,81728.0,0.1223791]
[1741874327150,0.25009529,81734.0,81733.0,0.1223716]
[1741874327350,0.25009529,81734.0,81733.0,0.2988116]
[1741874327753,0.28317856,81739.0,81733.0,0.18713617]
[1741874327961,0.28317856,81739.0,81726.0,0.17656]
[1741874328154,0.4788,81738.0,81726.0,0.21656]
[1741874328460,0.1223821,81726.0,81725.0,0.00018357]
[1741874328653,0.004,81729.0,81725.0,0.00018357]
[1741874328852,0.004,81729.0,81726.0,0.1223821]
[1741874328853,0.226,81727.0,81726.0,0.1223821]
[1741874329152,0.226,81727.0,81725.0,0.00018357]
[1741874329354,0.226,81727.0,81726.0,0.1223821]
[1741874329552,0.226,81727.0,81725.0,0.00018357]
[1741874329860,0.004,81729.0,81728.0,0.1223791]
[1741874331071,0.2322,81739.0,81726.0,0.17676]
[1741874331072,0.2372,81739.0,81726.0,0.17676]
[1741874331359,0.23,81738.0,81700.0,0.38754428]
[1741874331548,0.23,81738.0,81693.0,1.43231603]
[1741874331858,0.061197,81718.0,81707.0,0.1224096]
[1741874332048,0.4622,81717.0,81707.0,0.23]
[1741874332250,0.4622,81717.0,81716.0,0.122397]
[1741874332451,0.4622,81717.0,81716.0,0.25]
[1741874332651,0.4622,81717.0,81708.0,0.00018357]
[1741874332849,0.4622,81717.0,81714.0,0.1223996]
[1741874333057,0.4622,81717.0,81708.0,0.00018357]
[1741874333262,0.00018357,81725.0,81708.0,0.00018357]